Cogmind - Beta 16.1 @@@ ROGUE MODE // 2026.03.06 @ 14:23:02 Player: Kaisercar Result: Destroyed by P-80 Master with Gamma Rifle Performance ------------- Evolutions (8) 4000 Regions Visited (16) 3200 Robots Destroyed (184) 920 Value Destroyed (4559) 4559 Prototype IDs (34) 680 Alien Tech Used (1) 200 Bonus (4351) 4351 TOTAL SCORE: 17910 Bonus ------- High Alert Combat Kills 27 Follower Combat Kills 40 Registered with UFD 300 Met Optimus in HQ 500 Scanned by Researcher 500 Met Sigix 2000 Met Optimus at Protoforge 1000 Friendly Fire -16 Cogmind --------- Core Integrity 0/1450 Matter 295/300 Energy 164/170 System Corruption 13% Temperature Cool (0) Movement Flying (75) Location -2/Protoforge Parts ------- > --- POWER (2) -------- Light Antimatter Reactor > --- PROPULSION (8) --- Medium Treads Myomer Leg Impulse Thruster Array > --- UTILITY (11) ----- Advanced Heat Sink Advanced Melee Analysis Suite Experimental Core Analyzer Experimental Core Analyzer Experimental Core Analyzer Makeshift Core Shielding > --- WEAPON (2) ------- (None) > --- INVENTORY (5) ---- (None) Peak State ------------ > --- POWER ------------ Micro Antimatter Reactor Improved Quantum Reactor > --- PROPULSION ------- Improved Cesium-ion Thruster Nuclear Pulse Array Cooled Impulse Thruster Impulse Thruster Array Experimental Surge Thruster Experimental Surge Thruster > --- UTILITY ---------- Experimental Heat Sink Medium Storage Unit Advanced Signal Interpreter Advanced Melee Analysis Suite Advanced Melee Analysis Suite Experimental Core Analyzer Experimental Core Analyzer Experimental Armor Integrity Analyzer Improved Force Booster Advanced Phase Shifter > --- WEAPON ----------- Experimental Terror Saw Lance > --- INVENTORY -------- UFD Drillbomb [Rating: 177] Favorites ----------- Power Ion Engine Engine Ion Engine Power Core Light Nuclear Core Reactor Light Particle Reactor Propulsion Light Treads Treads Light Treads Leg Myomer Leg Wheel Compact Wheel Flight Unit Improved VTOL Module Utility Huge Storage Unit Device Experimental Sensor Array Storage Huge Storage Unit Processor Improved Signal Interpreter Hackware Hacking Suite Protection Core Shielding Artifact Phase Armor Weapon Heavy Assault Rifle Energy Gun High-powered Field Laser Energy Cannon Cooled Particle Cannon Ballistic Gun Heavy Assault Rifle Ballistic Cannon Improved Light Cannon Launcher Rocket Launcher Impact Weapon Powered Hammer Slashing Weapon Greatsword Piercing Weapon Lance Build | -11 -10 -10 -9 -8 -7 -7 -7 -7 -5 -4 -4 -4 -3 -2 -2 -2 ------- Run | Yrd Mat Min Mat Mat Fac Sto Rec Scr Fac Fac Was Fac Res Res Qua Frg Slots Evolved 16 | . . . 2 2 2 . . . 4 2 . . 2 2 . . Power 1 | . . . . . . . . . . . . . 1 . . . Propulsion 6 | . . . 1 . 1 . . . 1 1 . . 1 1 . . Utility 9 | . . . 1 2 1 . . . 3 1 . . . 1 . . Weapon . | . . . . . . . . . . . . . . . . . Parts Attached 201 | 7 13 4 16 13 10 23 8 6 16 5 . 6 11 7 5 51 Power 27 | 1 2 . 2 2 2 2 . 1 2 1 . . 3 . 1 8 Engine 11 | 1 2 . 2 2 2 2 . . . . . . . . . . Core 4 | . . . . . . . . 1 2 . . . . . . 1 Reactor 12 | . . . . . . . . . . 1 . . 3 . 1 7 Propulsion 59 | 2 3 . 6 3 1 9 6 2 3 1 . . 4 1 2 16 Treads 12 | 2 . . 4 3 1 1 . . . . . . . . . 1 Leg 7 | . . . . . . . . . . . . . . . . 7 Wheel 16 | . 3 . 2 . . 5 6 . . . . . . . . . Hover . | . . . . . . . . . . . . . . . . . Flight 24 | . . . . . . 3 . 2 3 1 . . 4 1 2 8 Utility 74 | 2 4 3 1 6 4 3 2 2 9 3 . 3 4 5 2 21 Device 20 | 1 . 1 . . . 1 . . 1 1 . 3 3 4 . 5 Storage 5 | 1 3 . . . . . . . 1 . . . . . . . Processor 17 | . . . 1 1 1 . . 1 1 . . . 1 1 . 10 Hackware 8 | . . . . . . 1 1 1 4 1 . . . . . . Protection 23 | . 1 2 . 5 3 1 1 . 2 1 . . . . 1 6 Artifact 1 | . . . . . . . . . . . . . . . 1 . Weapon 41 | 2 4 1 7 2 3 9 . 1 2 . . 3 . 1 . 6 Energy Gun 6 | 1 . . . . . 4 . . . . . . . . . 1 Energy Cannon 3 | . . . . . . 2 . . . . . 1 . . . . Ballistic Gun 14 | 1 4 . 2 . 1 3 . . . . . 1 . . . 2 Ballistic Cannon 6 | . . . 4 1 1 . . . . . . . . . . . Launcher 5 | . . 1 1 . 1 . . . 1 . . . . . . 1 Special Weapon . | . . . . . . . . . . . . . . . . . Impact Weapon 1 | . . . . . . . . . . . . 1 . . . . Slashing Weapon 5 | . . . . 1 . . . 1 1 . . . . . . 2 Piercing Weapon 1 | . . . . . . . . . . . . . . 1 . . Special Melee Weapon . | . . . . . . . . . . . . . . . . . Unidentified Prototypes 30 | . . 1 . . 2 12 . . . . . 1 2 . 1 11 Parts Lost 74 | . 4 . 5 . 3 10 4 . 2 3 . . 4 1 . 38 Power 8 | . . . 1 . . . . . 1 . . . . . . 6 Propulsion 28 | . 1 . 3 . 1 7 2 . . . . . 1 . . 13 Utility 27 | . 1 . 1 . 1 1 1 . 1 2 . . 3 1 . 15 Weapon 11 | . 2 . . . 1 2 1 . . 1 . . . . . 4 Highest Loss Streak 13 | . 2 . 3 . 3 4 2 . 1 2 . . 2 1 . 13 To Critical Strikes 1 | . 1 . . . . . . . . . . . . . . . Average Backups 19 | 2 16 23 24 24 24 24 24 23 9 5 6 9 9 7 9 2 Power 1 | . 1 2 2 1 1 1 2 1 1 . 1 . . . 1 . Propulsion 4 | 1 4 6 5 6 5 5 6 4 2 1 1 1 1 . 1 . Utility 9 | . 6 8 9 11 13 12 12 12 4 3 3 5 5 3 5 1 Weapon 4 | . 4 7 6 5 5 5 3 3 2 1 1 1 2 2 2 . Tool/Special . | . . . . . . . . . . . . . . . . . Unused Backups 76 | . 2 1 8 6 5 8 1 25 12 . . 2 . 1 4 1 Power 10 | . . . 1 1 1 . 1 4 2 . . . . . . . Propulsion 13 | . . 1 2 . . 6 . 4 . . . . . . . . Utility 37 | . . . 3 3 3 1 . 11 8 . . 2 . 1 4 1 Weapon 15 | . 2 . 2 2 1 1 . 5 2 . . . . . . . Tool/Special 1 | . . . . . . . . 1 . . . . . . . . Average Slot Usage (%) 93 | . 99 100 99 92 91 93 90 94 93 91 89 92 90 93 89 75 Engine 6 | . 14 14 10 9 7 7 7 1 . . . . . . . . Core 1 | . . . . . . . . 5 4 4 . . . . . . Treads 10 | . 23 . 14 26 24 10 2 . . . . . . . . . Wheel 10 | . 4 28 17 . . 14 20 29 . . . . . . . . Flight 6 | . . . . . . . . . 28 30 31 31 32 34 28 19 Device 4 | . 8 . . . . 2 . . 4 10 10 13 14 22 25 10 Storage 7 | . 14 14 11 9 7 7 7 7 5 5 5 5 4 4 4 2 Processor 13 | . . . 10 10 22 15 15 18 18 15 15 15 11 4 4 21 Hackware 6 | . . . . . . 6 12 16 17 16 15 15 13 8 8 1 Protection 8 | . 5 14 10 19 13 11 7 2 2 1 . . . 3 3 4 Energy Gun 1 | . 4 . . . . 4 3 . . . . . . . . . Ballistic Gun 6 | . 23 27 11 6 3 4 7 2 . . . . . . . 1 Ballistic Cannon 3 | . . . 10 11 10 2 . . . . . . . . . . Slashing Weapon 1 | . . . . . . . . 4 4 1 . . . . . . Peak Build Rating 177 | 7 12 20 16 28 39 46 44 53 75 79 74 92 112 136 151 177 Average Rating 46 | 4 9 12 15 24 35 40 41 41 73 75 74 81 101 125 132 135 On Entrance 53 | . 7 12 13 16 28 39 43 41 43 73 74 74 84 106 130 134 Avg Prop Armor Cover (%) 7 | . 13 . 7 2 . 10 11 . . . . 1 1 . . 8 Naked Turns . | . . . . . . . . . . . . . . . . . Heaviest Build 115 | 12 92 94 96 115 115 115 109 104 28 33 31 37 46 53 53 55 Greatest Support 130 | 40 40 32 42 60 80 60 64 58 28 35 33 37 45 53 60 130 Greatest Overweight (x) 36 | . 8 2 5 2 1 36 6 1 . . . 1 1 . . 1 Average Overweight (x) . | . 2 2 2 1 1 5 1 1 . . . . . . . . Largest Inventory Capacity 25 | 8 25 25 25 25 25 25 25 25 25 10 10 10 10 10 10 10 Average Capacity 20 | 6 20 25 25 25 25 25 25 25 10 10 10 10 10 10 10 8 Most Carried 25 | 5 25 25 25 25 25 25 25 25 24 7 6 10 10 10 10 10 Average Carried 19 | 2 16 23 24 24 24 24 24 23 10 5 6 9 9 8 9 4 Final Capacity 25 | 8 25 25 25 25 25 25 25 25 10 10 10 10 10 10 10 5 Final Carried 25 | 4 25 25 25 25 25 25 24 24 8 6 6 10 8 10 10 . Class Distribution -------------------- 47% | Scavenger-Mutant 31% | Mutant 11% | Hacker-Scout 3% | Hacker-Sprinter 3% | Scavenger-Sprinter Dominant Class ---------------- Mutant | -10/Materials Mutant | -10/Mines Scavenger-Mutant | -9/Materials Mutant | -8/Materials Mutant | -7/Factory Scavenger-Mutant | -7/Storage Scavenger-Mutant | -7/Recycling Scavenger-Mutant | -7/Scraptown Hacker-Scout | -5/Factory Hacker-Scout | -4/Factory Hacker-Scout | -4/Waste Hacker-Scout | -4/Factory Hacker-Scout | -3/Research Hacker-Sprinter | -2/Research Hacker-Sprinter | -2/Quarantine Scavenger-Sprinter | -2/Protoforge Resources | -11 -10 -10 -9 -8 -7 -7 -7 -7 -5 -4 -4 -4 -3 -2 -2 -2 ----------- Run | Yrd Mat Min Mat Mat Fac Sto Rec Scr Fac Fac Was Fac Res Res Qua Frg Matter Collected 5271 | 229 321 124 533 649 358 966 355 120 250 . . . 357 15 183 811 Remotely . | . . . . . . . . . . . . . . . . . Salvage Created 6670 | 10 685 9 875 784 337 1286 1222 . 456 10 . . 390 31 288 287 Parts 349 | 3 50 1 72 42 18 59 34 . 26 1 . . 7 9 12 15 Haulers Intercepted 16 | . 1 . 5 2 . 4 . . 1 . . . 2 . 1 . Recyclers Shooed 6 | . 3 . . . . 1 2 . . . . . . . . . Parts Field Recycled . | . . . . . . . . . . . . . . . . . Retrieved Matter . | . . . . . . . . . . . . . . . . . Parts Self-Destructed . | . . . . . . . . . . . . . . . . . Prevented . | . . . . . . . . . . . . . . . . . Parts Restored . | . . . . . . . . . . . . . . . . . Kills | -11 -10 -10 -9 -8 -7 -7 -7 -7 -5 -4 -4 -4 -3 -2 -2 -2 ------- Run | Yrd Mat Min Mat Mat Fac Sto Rec Scr Fac Fac Was Fac Res Res Qua Frg Combat Hostiles Destroyed 103 | . 17 2 20 19 9 21 6 . 5 . . . . . 1 3 Melee 4 | . . . . . 1 . . . . . . . . . 1 2 Guns 46 | . 17 . 6 5 . 15 2 . . . . . . . . 1 Cannons 39 | . . . 9 13 8 5 4 . . . . . . . . . AOE 12 | . . 2 5 . . . . . 5 . . . . . . . Classes Destroyed 17 | 1 8 . 2 1 1 1 1 . . . . . . . . 2 Worker 13 | . 3 . 1 . . 4 1 . 2 . . . . . 2 . Builder 9 | . 1 . 1 . . 2 1 . 2 . . . . 2 . . Tunneler 2 | 1 . . . 1 . . . . . . . . . . . . Hauler 16 | . 1 . 5 2 . 4 . . 1 . . . 2 . 1 . Recycler 18 | . 2 . 2 1 . 1 10 . 1 . . . 1 . . . Mechanic 2 | . . . 1 1 . . . . . . . . . . . . Operator 13 | . 2 . . 2 2 . . . 2 1 . . 2 . 2 . Watcher 8 | . 1 . 2 . 1 . . . 1 . . . . . 1 2 Swarmer 42 | . 11 2 12 8 . 4 . . 5 . . . . . . . Grunt 27 | . 6 . 2 6 4 9 . . . . . . . . . . Brawler 2 | . . . . 1 . . 1 . . . . . . . . . Protector 1 | . . . . . . . 1 . . . . . . . . . Sentry 20 | . . . 6 4 1 6 3 . . . . . . . . . Hunter 3 | . . . . . . 1 1 . . . . . . . . 1 Programmer 6 | . . . . . 4 1 . . . . . . . . 1 . Decapitator 1 | . . . . . . . . . . . . . . . . 1 Striker 1 | . . . . . . . . . . . . . . . . 1 Best Kill Streak 10 | 1 4 2 10 5 4 5 3 . 5 1 . . 2 2 2 1 Combat Bots Only 5 | . 4 2 4 4 3 4 2 . 5 . . . . . 1 1 Max Kills in Single Turn 4 | 1 1 1 4 1 1 2 1 . 3 1 . . 1 1 1 1 Gunslinging . | . . . . . . . . . . . . . . . . . Exploded 3 | . . 1 3 . . . . . 3 . . . . . . . Melee 1 | . . . . . 1 . . . . . . . . . 1 1 Uniques/NPCs Destroyed . | . . . . . . . . . . . . . . . . . Combat | -11 -10 -10 -9 -8 -7 -7 -7 -7 -5 -4 -4 -4 -3 -2 -2 -2 -------- Run | Yrd Mat Min Mat Mat Fac Sto Rec Scr Fac Fac Was Fac Res Res Qua Frg Hostile Shots Fired 1460 | . 109 12 91 80 92 329 127 . 27 16 . 28 64 33 9 443 Missed 622 | . 31 5 22 26 26 113 45 . 14 7 . 21 45 18 6 243 Hits 838 | . 78 7 69 54 66 216 82 . 13 9 . 7 19 15 3 200 Melee 7 | . . . . . . . . . . . . . . . . 7 Projectile 831 | . 78 7 69 54 66 216 82 . 13 9 . 7 19 15 3 193 Critical Strikes 32 | . 2 . 2 2 . 1 . . 1 . . . 2 1 . 21 Actively Blocked 6 | . . . 1 . . . . . . . . . . 1 . 4 Damage Taken 13561 | . 723 69 783 650 995 2144 622 . 389 112 . 126 765 332 50 5801 Core 2499 | . 108 25 102 19 26 362 86 . 85 14 . . 206 45 . 1421 Absorbed by Shields 37 | . . . . . . . 37 . . . . . . . . . Redirected to Shielding 302 | . . 4 20 3 2 . . . . . . . . 90 . 183 Ignored by Resistances 14 | . . . . 14 . . . . . . . . . . . . Regen/Repaired (Parts) 707 | . . . . . . 220 . 461 . . . . . . 26 . Core Remaining (%) 77 | 100 . 46 74 96 . . . 32 91 . . 98 84 . . . Volleys Fired 427 | 4 74 9 55 59 30 88 50 . 5 18 . 23 . . . 12 Largest 2 | 2 2 2 2 2 2 2 2 . 1 1 . 1 . . . 2 Hottest 160 | 70 70 46 63 70 70 145 98 . 36 90 . 105 . . . 160 Shots Fired 784 | 8 147 14 107 118 60 174 100 . 5 18 . 23 . . . 10 Gun 468 | 8 147 10 54 45 4 117 73 . . . . . . . . 10 Cannon 308 | . . . 51 73 56 57 27 . 3 18 . 23 . . . . Launcher 8 | . . 4 2 . . . . . 2 . . . . . . . Special . | . . . . . . . . . . . . . . . . . Kinetic 570 | 4 110 10 105 118 60 103 50 . . . . . . . . 10 Thermal 206 | 4 37 . . . . 71 50 . 3 18 . 23 . . . . Explosive 8 | . . 4 2 . . . . . 2 . . . . . . . Electromagnetic . | . . . . . . . . . . . . . . . . . Robot Hit Streak 25 | 4 12 7 25 10 6 15 9 . 2 . . 3 . . . 2 Robot Miss Streak 11 | 1 3 1 3 4 3 3 11 . . . . 1 . . . 2 Penetration Max . | . . . . . . . . . . . . . . . . . Secondary Targets 1 | . . . . . . 1 . . . . . . . . . . Max Gunslinging Chain 1 | . . . . . . 1 . . . . . . . . . . Shots Hit Robots 538 | 7 93 10 72 77 40 117 66 . 16 1 . 2 5 2 11 19 Core Hits 292 | 3 45 2 37 36 19 65 57 . 9 . . 1 2 2 5 9 Critical Kills 1 | . . . . . . 1 . . . . . . . . . . Critical Parts Destroyed 1 | . 1 . . . . . . . . . . . . . . . Critical Strikes 23 | . 5 . 1 4 2 3 3 . 1 . . . . . 1 3 Burn 9 | . 4 . . . . 2 3 . . . . . . . . . Meltdown 1 | . . . . . . 1 . . . . . . . . . . Destroy 1 | . 1 . . . . . . . . . . . . . . . Blast 7 | . . . 1 4 2 . . . . . . . . . . . Sever 2 | . . . . . . . . . 1 . . . . . . 1 Impale 3 | . . . . . . . . . . . . . . . 1 2 Melee Attacks 193 | . . . . 1 2 . . . 91 1 . 1 27 9 19 42 Thermal 2 | . . . . . . . . . . . . . . . . 2 Impact 35 | . . . . . . . . . . . . 1 27 6 1 . Slashing 101 | . . . . 1 2 . . . 91 1 . . . . . 6 Piercing 55 | . . . . . . . . . . . . . . 3 18 34 Sneak Attacks 19 | . . . . . . . . . 8 . . . 4 2 4 1 Combat Hostiles 2 | . . . . . . . . . . . . . . . 1 1 Follow-up Attacks 1 | . . . . . . . . . . . . . . . . 1 Damage Inflicted 13967 | 68 1001 310 1565 1507 991 2680 1478 . 1739 75 . 80 470 207 798 998 Guns 5431 | 68 991 145 661 429 52 1938 984 . . . . . . . . 163 Cannons 3786 | . . . 548 1057 865 742 494 . . . . 80 . . . . Explosions 846 | . . 165 349 . . . . . 332 . . . . . . . Melee 3828 | . . . . . 38 . . . 1407 75 . . 470 207 798 833 Ramming 76 | . 10 . 7 21 36 . . . . . . . . . . 2 Kinetic 6750 | 31 655 145 1209 1486 917 1531 613 . . . . . . . . 163 Thermal 2503 | 37 336 36 . . . 1149 865 . . . . 80 . . . . Explosive 810 | . . 129 349 . . . . . 332 . . . . . . . Electromagnetic . | . . . . . . . . . . . . . . . . . Impact 470 | . . . . . . . . . . . . . 470 . . . Slashing 1561 | . . . . . 38 . . . 1407 75 . . . . . 41 Piercing 1797 | . . . . . . . . . . . . . . 207 798 792 Highest Corruption 13 | . . . . . 3 3 3 . 7 . 5 5 10 . 1 13 Average Corruption 3 | . . . . . 2 3 3 . 1 . 5 5 10 . 1 6 Corruption Purged . | . . . . . . . . . . . . . . . . . Corruption Blocked . | . . . . . . . . . . . . . . . . . Effects 100 | . . . . . 19 16 17 . 13 . . 9 . . . 26 Message Errors 19 | . . . . . 3 3 5 . 2 . . 2 . . . 4 Matter Fused 28 | . . . . . 9 2 3 . 5 . . 1 . . . 8 Heat Flow Errors 11 | . . . . . 1 2 1 . 1 . . 4 . . . 2 Energy Discharges 12 | . . . . . 2 1 2 . 3 . . 1 . . . 3 Parts Rejected 2 | . . . . . . . . . . . . . . . . 2 Parts Fused 1 | . . . . . . 1 . . . . . . . . . . Data Loss (minor) 13 | . . . . . 2 2 3 . 2 . . 1 . . . 3 Data Loss (major) 6 | . . . . . 1 2 2 . . . . . . . . 1 Misfires 4 | . . . . . 1 2 1 . . . . . . . . . Alerts 1 | . . . . . . 1 . . . . . . . . . . Misdirections 2 | . . . . . . . . . . . . . . . . 2 Weapon Failures 1 | . . . . . . . . . . . . . . . . 1 Overload Shots 11 | . . . . . . . . . . 7 . 4 . . . . Effects 2 | . . . . . . . . . . 1 . 1 . . . . Energy Bleed 1 | . . . . . . . . . . 1 . . . . . . Short Circuit 1 | . . . . . . . . . . . . 1 . . . . Overflow Damage 1145 | . . 31 29 6 51 5 34 . 563 45 . . 154 . 156 71 Projectiles 91 | . . . 13 6 33 5 34 . . . . . . . . . Explosions 78 | . . 31 16 . . . . . 31 . . . . . . . Melee 976 | . . . . . 18 . . . 532 45 . . 154 . 156 71 Knockbacks 18 | . . . 1 10 4 1 . . . . . . 2 . . . Impact 3 | . . . . . 1 . . . . . . . 2 . . . Kinetic 13 | . . . 1 8 3 1 . . . . . . . . . . Secondary 2 | . . . . 2 . . . . . . . . . . . . Self-Inflicted Damage 21 | . . . 21 . . . . . . . . . . . . . Shots 1 | . . . 1 . . . . . . . . . . . . . Rammed 11 | . 4 . 1 2 4 . . . . . . . . . . . Targets Rammed 13 | . 4 . 1 2 5 . . . . . . . . . . 1 Kicked 1 | . . . . . . . . . . . . . . . . 1 Crushed 1 | . . . . . 1 . . . . . . . . . . . Highest Temperature 388 | 40 240 4 20 153 388 354 204 . 248 234 24 291 220 44 . 80 Average Temperature 59 | 20 62 4 7 34 59 110 64 . 118 72 13 51 94 12 . 48 Received Heat Transfer 2220 | . 168 9 174 234 291 645 120 . 48 . . 9 39 45 . 438 Effects 5 | . . . . . . 2 1 . . . . 2 . . . . Energy Bleed 1 | . . . . . . . 1 . . . . . . . . . Interference 2 | . . . . . . . . . . . . 2 . . . . Matter Decay 1 | . . . . . . 1 . . . . . . . . . . Short Circuit 1 | . . . . . . 1 . . . . . . . . . . Siege Activations . | . . . . . . . . . . . . . . . . . Martial Activations . | . . . . . . . . . . . . . . . . . Shielding Activations . | . . . . . . . . . . . . . . . . . Robots Disrupted . | . . . . . . . . . . . . . . . . . Combat Hostiles . | . . . . . . . . . . . . . . . . . Robots Corrupted 4 | . . . . 1 . . . . . . . . 3 . . . Combat Hostiles 1 | . . . . 1 . . . . . . . . . . . . Parts Fried 5 | . . . . 1 . . . . . . . . 4 . . . Impact Corruptions 10 | . . . . 1 . . . . . . . . 9 . . . Robots Melted 1 | . . . . . . 1 . . . . . . . . . . Combat Hostiles 1 | . . . . . . 1 . . . . . . . . . . Parts Melted 11 | . 1 . . 1 . 6 3 . . . . . . . . . Heat Transferred 4874 | 111 1295 50 . . . 1882 1425 . . . . 111 . . . . Parts Sabotaged 2 | . . . . . . . . . . . . . . . . 2 Parts Stolen . | . . . . . . . . . . . . . . . . . Parts Stripped . | . . . . . . . . . . . . . . . . . Power Chain Reactions . | . . . . . . . . . . . . . . . . . Alert | -11 -10 -10 -9 -8 -7 -7 -7 -7 -5 -4 -4 -4 -3 -2 -2 -2 ------- Run | Yrd Mat Min Mat Mat Fac Sto Rec Scr Fac Fac Was Fac Res Res Qua Frg Maximum Alert Level 2 | . . . 1 . . 1 . . 1 . . . 2 2 1 2 Low Security (%) 87 | 100 100 100 92 100 100 86 100 . 82 100 100 100 76 2 20 35 Level 1 8 | . . . 7 . . 13 . . 17 . . . 22 77 79 15 Level 2 4 | . . . . . . . . . . . . . 1 19 . 48 Level 3 . | . . . . . . . . . . . . . . . . . Level 4 . | . . . . . . . . . . . . . . . . . Level 5 . | . . . . . . . . . . . . . . . . . High Security . | . . . . . . . . . . . . . . . . . Max Security . | . . . . . . . . . . . . . . . . . Peak Influence 648 | 5 140 79 261 177 173 234 112 . 290 137 . 84 400 437 248 648 Initial 240 | . . 9 . 2 21 13 78 . . 132 . . 51 209 240 72 Average 96 | . 62 24 66 63 47 120 55 . 120 28 . 7 104 287 202 340 Influence Increases 6666 | 5 530 89 649 594 425 723 426 . 659 98 . 190 531 298 139 1310 Destroy 0b10 Robot/C 2060 | . 340 40 400 380 180 420 120 . 100 . . . . . 20 60 Destroy 0b10 Robot/NC 420 | 5 50 . 60 35 15 55 75 . 50 5 . . 20 10 30 10 Destroy Leader 488 | . 64 . 104 84 72 118 . . 14 . . . 4 . 14 14 Allied During Kill 2 | . . . . . . . 2 . . . . . . . . . Successful Hack 216 | . . . 8 14 8 23 24 . 36 . . 10 40 18 21 14 Select Force Hacks 180 | . . . . . . . 180 . . . . . . . . . Disable Machine 240 | . . 15 . 30 45 60 15 . 30 . . . 15 . 15 15 Destroy Structure 420 | . 1 34 32 6 . 17 10 . 174 18 . 30 32 15 9 42 Partial Spotted 405 | . . . . . . . . . 90 60 . 60 45 60 15 75 Lose Combat Pursuer 2235 | . 75 . 45 45 105 30 . . 165 15 . 90 375 195 15 1080 Influence Decreases 6074 | 5 504 115 642 552 443 554 608 18 389 368 . 91 258 243 437 847 Entered New Map 801 | . . 17 . 5 28 18 122 18 . 138 . . 48 163 187 57 Time Decay 3996 | 5 464 98 462 425 385 436 426 . 339 67 . 89 170 70 150 410 Search Patrol Dispatched 100 | . . . . . . . . . . . . . . . 100 . Lost Part 716 | . 40 . 30 . 30 100 40 . 20 26 . . 40 10 . 380 Lost Ally 52 | . . . . . . . 20 . 30 . . 2 . . . . Purge Threat 409 | . . . 150 122 . . . . . 137 . . . . . . Squads Dispatched 64 | . 4 . . 4 6 6 . . 13 5 . 11 5 2 2 6 Investigation 28 | . 2 . . 2 1 1 . . 8 3 . 6 2 . . 3 Extermination 18 | . . . . . 4 2 . . 4 1 . 2 2 1 1 1 Reinforcement 16 | . 2 . . 2 1 3 . . 1 1 . 1 1 1 1 2 Assault 2 | . . . . . . . . . . . . 2 . . . . Garrison . | . . . . . . . . . . . . . . . . . Intercept . | . . . . . . . . . . . . . . . . . Searches Triggered 1 | . . . . . . . . . . . . . . . 1 . Construction Impeded 2 | . . . . . . 1 . . 1 . . . . . . . Haulers Reinforced 2 | . . . . . . 2 . . . . . . . . . . Active Scanning Responses . | . . . . . . . . . . . . . . . . . Cargo Convoy Interrupts . | . . . . . . . . . . . . . . . . . Stealth | -11 -10 -10 -9 -8 -7 -7 -7 -7 -5 -4 -4 -4 -3 -2 -2 -2 --------- Run | Yrd Mat Min Mat Mat Fac Sto Rec Scr Fac Fac Was Fac Res Res Qua Frg Distress Signals 28 | . 2 . 1 2 1 4 2 . 2 . . 1 1 1 1 10 Communications Jammed 26 | . . . . . . . . . 1 . . . . . . 25 Distress Signals 25 | . . . . . . . . . . . . . . . . 25 Times Spotted 438 | . 35 5 28 28 24 31 8 . 24 7 3 13 33 22 9 168 Peak Tracking Total 24 | . 8 3 5 5 10 5 3 . 6 4 3 8 18 16 6 24 Tactical Retreats 57 | . 5 . 1 2 3 1 . . 4 1 . 2 6 4 1 27 ECM-based Alert Blocks 1 | . . . . . . . . . . . . . . 1 . . Traps | -11 -10 -10 -9 -8 -7 -7 -7 -7 -5 -4 -4 -4 -3 -2 -2 -2 ------- Run | Yrd Mat Min Mat Mat Fac Sto Rec Scr Fac Fac Was Fac Res Res Qua Frg Traps Triggered 14 | . 1 . . 1 1 4 . . 2 1 . . . . . 4 Indirectly . | . . . . . . . . . . . . . . . . . Trap Hack Attempts . | . . . . . . . . . . . . . . . . . Triggered . | . . . . . . . . . . . . . . . . . Disarmed . | . . . . . . . . . . . . . . . . . Reprogrammed . | . . . . . . . . . . . . . . . . . Reused . | . . . . . . . . . . . . . . . . . Traps Extracted . | . . . . . . . . . . . . . . . . . Installed . | . . . . . . . . . . . . . . . . . Triggered . | . . . . . . . . . . . . . . . . . Machines | -11 -10 -10 -9 -8 -7 -7 -7 -7 -5 -4 -4 -4 -3 -2 -2 -2 ---------- Run | Yrd Mat Min Mat Mat Fac Sto Rec Scr Fac Fac Was Fac Res Res Qua Frg Machines Disabled 16 | . . 1 . 2 3 4 1 . 2 . . . 1 . 1 1 Max in Single Turn 1 | . . 1 . 1 1 1 1 . 1 . . . 1 . 1 1 Garrison Access 4 | . . . . . . . . . 2 1 . 1 . . . . Machines Repaired . | . . . . . . . . . . . . . . . . . Machines Dismantled . | . . . . . . . . . . . . . . . . . Machines Sabotaged . | . . . . . . . . . . . . . . . . . Overloaded Fab Kills . | . . . . . . . . . . . . . . . . . Hacking | -11 -10 -10 -9 -8 -7 -7 -7 -7 -5 -4 -4 -4 -3 -2 -2 -2 --------- Run | Yrd Mat Min Mat Mat Fac Sto Rec Scr Fac Fac Was Fac Res Res Qua Frg Machines Accessed 107 | . 4 . 8 5 5 3 11 1 21 6 . 11 10 2 12 8 Terminals 67 | . 4 . 6 5 3 2 5 . 10 3 . 5 7 2 10 5 Fabricators 2 | . . . . . . . . . 2 . . . . . . . Repair Stations 2 | . . . . . . 1 . . . . . . . . 1 . Recycling Units 26 | . . . 1 . 2 . 6 . 5 2 . 5 2 . . 3 Scanalyzers 4 | . . . 1 . . . . . 1 . . 1 . . 1 . Garrison Access 5 | . . . . . . . . . 3 1 . . 1 . . . Total Hacks 208 | . 8 . 14 8 9 5 21 4 40 15 . 23 20 3 24 14 Successful 107 | . 1 . 5 3 2 5 16 4 17 11 . 16 10 1 11 5 Failed 100 | . 6 . 9 5 7 . 5 . 23 4 . 7 10 2 13 9 Catastrophic 21 | . . . 3 4 3 . . . 5 1 . 2 1 1 . 1 Database Lockouts 1 | . 1 . . . . . . . . . . . . . . . Manual 134 | . 9 . 10 7 5 2 22 . 23 10 . 13 12 3 8 10 Terminals 136 | . 8 . 10 8 5 3 13 . 23 12 . 12 14 3 18 7 Fabricators 4 | . . . . . . . . . 4 . . . . . . . Repair Stations 5 | . . . . . . 2 . . . . . . . . 3 . Recycling Units 40 | . . . 1 . 4 . 8 . 7 2 . 8 3 . . 7 Scanalyzers 11 | . . . 3 . . . . . 2 . . 3 . . 3 . Garrison Access 8 | . . . . . . . . . 4 1 . . 3 . . . Terminal Hacks 48 | . 1 . 2 3 1 2 3 4 5 5 . 4 6 1 8 3 Record 8 | . . . . . . . . 4 . 1 . . . . 3 . Part Schematic 4 | . 1 . . . . . 3 . . . . . . . . . Robot Analysis 1 | . . . . 1 . . . . . . . . . . . . Open Door 2 | . . . . . . 1 . . . . . . . . 1 . Level Access Points 3 | . . . . . . . . . . 1 . 1 1 . . . Branch Access Points 6 | . . . 1 1 1 . . . . . . . 1 1 1 . Recycling Unit Index 3 | . . . . . . . . . . 1 . . 1 . . 1 Unreport Threat 3 | . . . 1 1 . . . . . 1 . . . . . . Locate Traps 2 | . . . . . . . . . 1 1 . . . . . . Recall Investigation 4 | . . . . . . . . . 2 . . 2 . . . . Recall Extermination 1 | . . . . . . . . . . . . . 1 . . . Hauler Manifests 2 | . . . . . . . . . 1 . . . . . 1 . Zone Layout 9 | . . . . . . 1 . . 1 . . 1 2 . 2 2 Fabricator Hacks 3 | . . . . . . . . . 3 . . . . . . . Load Schematic 2 | . . . . . . . . . 2 . . . . . . . Build 1 | . . . . . . . . . 1 . . . . . . . Repair Station Hacks 4 | . . . . . . 2 . . . . . . . . 2 . Scan Component 2 | . . . . . . 1 . . . . . . . . 1 . Repair 2 | . . . . . . 1 . . . . . . . . 1 . Recycling Unit Hacks 4 | . . . 1 . 1 . . . . . . 2 . . . . Retrieve Components 4 | . . . 1 . 1 . . . . . . 2 . . . . Scanalyzer 5 | . . . 2 . . . . . . . . 3 . . . . Insert Component 1 | . . . . . . . . . . . . 1 . . . . Retrieve Study 4 | . . . 2 . . . . . . . . 2 . . . . Garrison Access Hacks 3 | . . . . . . . . . 2 1 . . . . . . Seal Access 3 | . . . . . . . . . 2 1 . . . . . . Unauthorized Hacks 40 | . . . . . . 1 13 . 7 5 . 7 4 . 1 2 Terminals 18 | . . . . . . 1 7 . 2 3 . 2 2 . 1 . Assimilate 2 | . . . . . . . . . . 1 . . 1 . . . Botnet 9 | . . . . . . 1 2 . 1 2 . 1 1 . 1 . Operators 2 | . . . . . . . . . 1 . . 1 . . . . Skim 5 | . . . . . . . 5 . . . . . . . . . Fabricators 1 | . . . . . . . . . 1 . . . . . . . Recompile 1 | . . . . . . . . . 1 . . . . . . . Repair Stations . | . . . . . . . . . . . . . . . . . Recycling Units 21 | . . . . . . . 6 . 4 2 . 5 2 . . 2 Tunnel 6 | . . . . . . . 6 . . . . . . . . . Fedlink 15 | . . . . . . . . . 4 2 . 5 2 . . 2 Scanalyzers . | . . . . . . . . . . . . . . . . . Garrison Access . | . . . . . . . . . . . . . . . . . Data Cores Recovered 4 | . . . . 1 1 . . . . . . . . . 2 . Used 2 | . . . . . . . . . . . . . . . 2 . Hacking Detections 73 | . 4 . 7 5 3 1 5 . 14 1 . 7 8 2 10 6 Full Trace Events 7 | . 1 . . 1 1 . . . 1 1 . 1 . . . 1 Feedback Events 3 | . . . . . . . . . 1 2 . . . . . . Corruption 1 | . . . . . . . . . 1 . . . . . . . Hackware Fried 2 | . . . . . . . . . . 2 . . . . . . Feedback Blocked . | . . . . . . . . . . . . . . . . . Robot Schematics Acquired . | . . . . . . . . . . . . . . . . . Robots Built . | . . . . . . . . . . . . . . . . . Authchips . | . . . . . . . . . . . . . . . . . Time . | . . . . . . . . . . . . . . . . . Total Robot Build Rating . | . . . . . . . . . . . . . . . . . Part Schematics Acquired 4 | . 1 . . . . . 3 . . . . . . . . . Parts Built 2 | . . . . . . . . . 2 . . . . . . . Authchips 1 | . . . . . . . . . 1 . . . . . . . Time 36 | . . . . . . . . . 36 . . . . . . . Total Part Build Rating 6 | . . . . . . . . . 6 . . . . . . . Part Studies Acquired 4 | . . . 2 . . . . . . . . 2 . . . . Parts Repaired 2 | . . . . . . 1 . . . . . . . . 1 . Time 72 | . . . . . . 22 . . . . . . . . 50 . Parts Recycled . | . . . . . . . . . . . . . . . . . Recycled Matter . | . . . . . . . . . . . . . . . . . Retrieved Matter . | . . . . . . . . . . . . . . . . . Retrieved Components 7 | . . . 3 . 1 . . . . . . 3 . . . . Parts Scanalyzed . | . . . . . . . . . . . . . . . . . Part Schematics Acquired . | . . . . . . . . . . . . . . . . . Parts Damaged . | . . . . . . . . . . . . . . . . . Bothacking | -11 -10 -10 -9 -8 -7 -7 -7 -7 -5 -4 -4 -4 -3 -2 -2 -2 ------------ Run | Yrd Mat Min Mat Mat Fac Sto Rec Scr Fac Fac Was Fac Res Res Qua Frg Used RIF Installer . | . . . . . . . . . . . . . . . . . Robots Hacked . | . . . . . . . . . . . . . . . . . Non-combat . | . . . . . . . . . . . . . . . . . Combat . | . . . . . . . . . . . . . . . . . Robot Hacks Applied . | . . . . . . . . . . . . . . . . . Relay Couplers Released 2 | . . . . . . . . . . . . 2 . . . . Machine Destruction 2 | . . . . . . . . . . . . 2 . . . . Fabnet Peak Effective % . | . . . . . . . . . . . . . . . . . Robots Rewired 2 | . . . . . . . 2 . . . . . . . . . Allies Hacked 1 | . . . . . . . . . . . . 1 . . . . Hacks Repelled . | . . . . . . . . . . . . . . . . . Allies | -11 -10 -10 -9 -8 -7 -7 -7 -7 -5 -4 -4 -4 -3 -2 -2 -2 -------- Run | Yrd Mat Min Mat Mat Fac Sto Rec Scr Fac Fac Was Fac Res Res Qua Frg Total Allies 5 | . . . . . . . 2 1 . 1 . . 1 . . . Largest Group 2 | . . . . . . . 2 2 2 1 . 1 1 . . . Highest-Rated Group 90 | . . . . . . . 72 90 90 26 . 26 26 . . . Highest-Rated Ally 50 | . . . . . . . 40 50 50 26 . 26 26 . . . Initial UFD Resources 101 | . . . . . . . . . 39 59 73 73 85 101 101 101 Total Orders 2 | . . . . . . . . 2 . . . . . . . . STAY 1 | . . . . . . . . 1 . . . . . . . . FOLLOW 1 | . . . . . . . . 1 . . . . . . . . Ally Attacks 16 | . . . . . . . 4 . 12 . . . . . . . Total Damage 591 | . . . . . . . 161 . 430 . . . . . . . Kills 2 | . . . . . . . 1 . 1 . . . . . . . Allies Corrupted 2 | . . . . . . . . . . . . 1 1 . . . Allies Melted 1 | . . . . . . . . . . . . . . . . 1 Intel | -11 -10 -10 -9 -8 -7 -7 -7 -7 -5 -4 -4 -4 -3 -2 -2 -2 ------- Run | Yrd Mat Min Mat Mat Fac Sto Rec Scr Fac Fac Was Fac Res Res Qua Frg Active Infowar (turns) 9621 | 25 1018 1 . . 1614 1142 1142 2081 886 192 16 388 344 141 316 315 Optics 313 | . . . . . . . . . 279 . . . . . . 34 Sensors 2227 | . . 1 . . . . . . 860 192 16 383 344 141 159 131 IFF 562 | . . . . . . . . . . . . . 8 141 307 106 Structural 1255 | . . . . . . . . . . 192 16 378 174 26 316 153 Seismic 1043 | 25 1018 . . . . . . . . . . . . . . . Decoding 3428 | . . . . . . . . 931 886 192 16 388 344 141 316 214 Machine Analysis 7667 | . . . . . 1614 1142 1142 2081 886 192 16 388 206 . . . Cloaking 689 | . . . . . . . . . . . . . . 62 312 315 Jamming 388 | . . . . . . . . . 18 . . 5 5 . 166 194 ECM 9 | . . . . . . . . . . . . . . 9 . . Robot Analysis Total 1 | . . . . 1 . . . . . . . . . . . . Derelict Logs Recovered 2 | . . 2 . . . . . . . . . . . . . . Drone Launches . | . . . . . . . . . . . . . . . . . Drone Recoveries . | . . . . . . . . . . . . . . . . . Decoded 0b10 Intel 44 | . . . . . . . . . 16 3 . 6 8 4 5 2 Traps 27 | . . . . . . . . . 13 2 . 1 3 4 2 2 Emergency Access 16 | . . . . . . . . . 2 1 . 5 5 . 3 . Exits 1 | . . . . . . . . . 1 . . . . . . . Exploration | -11 -10 -10 -9 -8 -7 -7 -7 -7 -5 -4 -4 -4 -3 -2 -2 -2 ------------- Run | Yrd Mat Min Mat Mat Fac Sto Rec Scr Fac Fac Was Fac Res Res Qua Frg Turns Passed 14214 | 96 1661 297 1248 1666 1615 1142 1142 2081 886 192 16 388 344 141 316 983 Spaces Moved 13649 | 49 599 200 522 579 588 442 674 1770 1931 525 77 1096 1034 565 875 2123 Core 9 | 8 . . . . . 1 . . . . . . . . . . Treads 1827 | 41 396 . 147 579 588 37 37 . . . . . . . . 2 Legs 100 | . . . . . . . . . . . . . . . . 100 Wheels 3589 | . 203 200 375 . . 404 637 1770 . . . . . . . . Hover . | . . . . . . . . . . . . . . . . . Flight 8124 | . . . . . . . . . 1931 525 77 1096 1034 565 875 2021 Fastest Speed 17 | 50 130 130 123 240 242 125 110 110 24 21 21 21 19 17 17 19 Average Speed 82 | 142 219 130 186 247 242 176 142 110 24 22 21 23 21 17 23 31 Slowest Speed 1850 | 160 320 130 320 320 243 1850 570 110 25 23 21 96 108 17 26 160 Overloaded Moves . | . . . . . . . . . . . . . . . . . Propulsion Burnouts . | . . . . . . . . . . . . . . . . . Robots Hopped 32 | . . . . . . . . . 5 . . 6 4 1 . 16 Potential Cave-ins 7 | . . . . . . . . . 2 . . . 2 . . 3 Cave-ins Triggered 2 | . . . . . . . . . 1 . . . 1 . . . Exploration Rate (%) 48 | 3 75 61 54 48 13 49 98 88 50 15 70 41 28 18 76 45 Regions Visited 16 Branch Regions 6 Pre-discovered Areas 10 | . . . . . . . 9 . 1 . . . . . . . Known Exits Taken 10 | . . . 1 1 1 1 1 1 1 . . 1 1 1 . . Unknown Exits Taken 4 | 1 1 1 . . . . . . . . . . . . 1 . Scrap Searched 6 | . . 1 . . . . . 5 . . . . . . . . Spaces Dug 144 | . . . . 1 . . . . 81 8 . 15 19 5 3 12 Terrain Destroyed 265 | . . 51 26 3 . 15 10 . 89 11 . 15 19 5 3 18 Melee 114 | . . . . 1 . . . . 73 . . 1 19 5 3 12 Projectile 63 | . . . 2 2 . 15 10 . 3 11 . 14 . . . 6 AOE 88 | . . 51 24 . . . . . 13 . . . . . . . Terrain Rammed . | . . . . . . . . . . . . . . . . . Walls Destroyed . | . . . . . . . . . . . . . . . . . Machines Disabled . | . . . . . . . . . . . . . . . . . Actions | -11 -10 -10 -9 -8 -7 -7 -7 -7 -5 -4 -4 -4 -3 -2 -2 -2 --------- Run | Yrd Mat Min Mat Mat Fac Sto Rec Scr Fac Fac Was Fac Res Res Qua Frg Total 15569 | 65 807 223 703 705 711 660 759 1924 2149 576 76 1203 1105 594 965 2344 Wait 582 | 1 85 1 75 15 47 54 12 62 76 21 . 61 12 8 33 19 Move 13574 | 48 598 199 521 578 587 441 673 1769 1919 525 76 1083 1026 562 874 2095 Hop 27 | . . . . . . . . . 5 . . 6 3 1 . 12 Pick Up 166 | 5 23 4 13 13 11 13 4 38 7 1 . 8 5 5 11 5 Fast Attach 143 | 6 3 1 5 4 3 24 7 3 5 . . 5 8 5 4 60 Attach 62 | 1 3 . 4 2 5 4 3 . 13 5 . . 5 3 2 12 Detach 24 | . . . . . . 1 . 1 2 1 . 3 2 1 . 13 Swap 90 | . 10 4 12 9 7 10 . 9 7 4 . 4 6 . 3 5 Drop 227 | . 7 5 17 22 12 25 5 42 18 . . 9 11 2 17 35 Fire 427 | 4 74 9 55 59 30 88 50 . 5 18 . 23 . . . 12 Melee 188 | . . . . 1 2 . . . 91 1 . 1 27 7 18 40 Ram 2 | . 1 . 1 . . . . . . . . . . . . . Kick 1 | . . . . . . . . . . . . . . . . 1 Crush 10 | . 3 . . 2 5 . . . . . . . . . . . Escape Stasis 6 | . . . . . 2 . . . 1 . . . . . 3 . Rewire 5 | . . . . . . . 5 . . . . . . . . . Trap . | . . . . . . . . . . . . . . . . . Miscellaneous 35 | . . . . . . . . . . . . . . . . 35 Route ------- -11/Scrapyard -10/Materials (discovered 4 exits: *Mat / [*Min x2] / [*Sub]) -10/Mines -9/Materials (discovered 3 exits: *Mat x2 / *Min) -8/Materials -7/Factory (discovered 4 exits: *Sto x2 / *Low x2) -7/Storage -7/Recycling (discovered 2 exits: *Fac / *Scr) -7/Scraptown (discovered 2 exits: *Fac x2) -5/Factory (discovered 3 exits: *Fac x2 / *Ext) -4/Factory (discovered 4 exits: Res x4) -4/Waste -4/Factory (discovered 4 exits: *Res x4) -3/Research (discovered 6 exits: *Res x3 / Arm / Tes x2) -2/Research (discovered 2 exits: *Qua x2) -2/Quarantine (discovered 3 exits: [*Acc] / [*Sec] / *Frg) -2/Protoforge (discovered 1 exit: [*Acc]) History --------- Turn | Location | Event 8 | -11/Scrapyard | Discovered new exit (range 14) 97 | -11/Scrapyard | Entered Materials 155 | -10/Materials | Discovered new exit (range 9) 307 | -10/Materials | Build established: Mutant 495 | -10/Materials | Discovered new exit (range 16) 805 | -10/Materials | Discovered new exit (range 15) 1038 | -10/Materials | Central database locked down 1615 | -10/Materials | Discovered new exit (range 11) 1758 | -10/Materials | Entered Mines 1765 | -10/Mines | Learned location of 1 exit from Materials 1805 | -10/Mines | Found a damaged Exp. Sensor Array with a note attached 1808 | -10/Mines | Found Prototype Device 1815 | -10/Mines | Identified Exp. Sensor Array 1978 | -10/Mines | Discovered new exit (range 6) 1980 | -10/Mines | Learned Materials terminal intel 1989 | -10/Mines | Joined a pair of Derelicts in attacking an 0b10 outpost 1993 | -10/Mines | Core integrity fell below 50% 2055 | -10/Mines | Entered Materials 2055 | -9/Materials | Evolved 2 slots: Propulsion x1, Utility x1 2056 | -9/Materials | Identified exit to Materials 2057 | -9/Materials | Loaded intel: 12 terminal locations 2185 | -9/Materials | Identified exit to Mines 2362 | -9/Materials | Build established: Scavenger-Mutant 2724 | -9/Materials | Lost 3 parts (1p2n) 3274 | -9/Materials | Discovered exit to Materials (range 9) 3303 | -9/Materials | Entered another Materials area 3303 | -8/Materials | Evolved 2 slots: Utility x2 4224 | -8/Materials | Build established: Mutant 4650 | -8/Materials | Discovered new exit (range 9) 4677 | -8/Materials | Identified exit to Factory 4969 | -8/Materials | Entered Factory 4969 | -7/Factory | Evolved 2 slots: Propulsion x1, Utility x1 5097 | -7/Factory | Identified exit to Storage 5097 | -7/Factory | Identified exit to Lower Caves 5271 | -7/Factory | Build established: Scavenger-Mutant 5384 | -7/Factory | Lost 3 parts (1n1u1w) 5633 | -7/Factory | Build established: Mutant 6584 | -7/Factory | Entered Storage 6990 | -7/Storage | Build established: Scavenger-Mutant 7086 | -7/Storage | Lost 3 parts (2n1w) 7211 | -7/Storage | Repaired Imp. Medium Armor Plating? 7613 | -7/Storage | Lost 4 parts (2n1u1w) 7654 | -7/Storage | Core integrity fell below 50% 7717 | -7/Storage | Used back door to open Recycling access 7717 | -7/Storage | Discovered new exit (range 5) 7724 | -7/Storage | Identified exit to Recycling 7726 | -7/Storage | Entered Recycling 7727 | -7/Recycling | Joined Warlord attack on 0b10 via Recycling 8132 | -7/Recycling | Discovered new exit (range 14) 8379 | -7/Recycling | Learned location of 1 exit from Upper Caves 8437 | -7/Recycling | Learned location of Zion (-6) 8487 | -7/Recycling | Learned 2 Extension zone layouts 8529 | -7/Recycling | Learned 2 Proximity Caves zone layouts 8561 | -7/Recycling | Learned Extension non-interactive machine intel 8585 | -7/Recycling | Learned location of 2 exits from Archives 8695 | -7/Recycling | Learned Extension emergency access door positions 8744 | -7/Recycling | Learned Extension emergency access door positions 8838 | -7/Recycling | Scanned before Scraplab entrance 8853 | -7/Recycling | Entered Scraplab 8862 | -7/Recycling | Discovered new exit (range 3) 8863 | -7/Recycling | Identified exit to Scraptown 8868 | -7/Recycling | Entered Scraptown 8868 | -7/Scraptown | Accompanied by 1 ally 8868 | -7/Scraptown | System corruption cleaned by C-Scrubber 9035 | -7/Scraptown | Discovered new exit (range 5) 9153 | -7/Scraptown | Visited SPCMW 9181 | -7/Scraptown | Visited Fellowship of the Rings 9371 | -7/Scraptown | Visited CR-KLE's Repair Center 9379 | -7/Scraptown | CR-KLE repaired 8 parts 9399 | -7/Scraptown | Visited Shadow of the Wyrm 9418 | -7/Scraptown | Visited Symbiants 9437 | -7/Scraptown | Visited Junk Repository 9472 | -7/Scraptown | Visited Junk Repository 9511 | -7/Scraptown | Visited UFD Registry 9511 | -7/Scraptown | Registered with UFD as "Longunit" 9591 | -7/Scraptown | Visited DA-N13 Charitable Foundation 9601 | -7/Scraptown | Found DCF Scrap (28 items) 9651 | -7/Scraptown | Visited Curators Association 9680 | -7/Scraptown | Visited Derelict Rescue Squad 9689 | -7/Scraptown | Found DRS Beacon 9711 | -7/Scraptown | Visited Junk Cannon Lab 9746 | -7/Scraptown | Visited Infowarlord's Domain 9771 | -7/Scraptown | Visited Scrap Suit Storage 9788 | -7/Scraptown | Visited Botcube Research 9812 | -7/Scraptown | Visited Abandonware Association 9826 | -7/Scraptown | Learned abandonware demo "ERRANTS.EXE" 9826 | -7/Scraptown | Learned abandonware demo "TRNCOAT.EXE" 9852 | -7/Scraptown | Visited Science Testing Area 10615 | -7/Scraptown | Found Botcube 10682 | -7/Scraptown | Botcube activated 10698 | -7/Scraptown | Botcube completed mutation into legged form, armed with 2 guns. 10750 | -7/Scraptown | Discovered new exit (range 5) 10791 | -7/Scraptown | Identified exit to Factory 10885 | -7/Scraptown | Met Optimus 10885 | -7/Scraptown | Accepted into 0bPrime 10949 | -7/Scraptown | Entered Factory 10949 | -5/Factory | Accompanied by 2 allies 10949 | -5/Factory | Evolved 4 slots: Propulsion x1, Utility x3 10950 | -5/Factory | Identified exit to Extension 11048 | -5/Factory | Loaded intel: 8 recycling unit locations 11116 | -5/Factory | Identified exit to Factory 11258 | -5/Factory | Build established: Hacker-Scout 11343 | -5/Factory | Learned location of Protoforge (-2) 11365 | -5/Factory | Fabricated Imp. Propulsion Shielding (x2) 11751 | -5/Factory | Discovered exit to Factory (range 13) 11784 | -5/Factory | Crushed by falling debris 11835 | -5/Factory | Entered another Factory area 11835 | -4/Factory | Evolved 2 slots: Propulsion x1, Utility x1 11875 | -4/Factory | Identified exit to Research 11900 | -4/Factory | Loaded intel: 8 recycling unit locations 11937 | -4/Factory | System Shield fried by hacking feedback 11937 | -4/Factory | Hacking Suite fried by hacking feedback 12027 | -4/Factory | Manually triggered Chute Trap 12027 | -4/Factory | Sucked down chute 12027 | -4/Factory | Entered Waste 12029 | -4/Waste | Spotted C-40 Crusher 12034 | -4/Waste | Spotted C-40 Crusher 12034 | -4/Waste | Spotted C-40 Crusher 12036 | -4/Waste | Spotted C-40 Crusher 12041 | -4/Waste | Spotted C-40 Crusher 12041 | -4/Waste | Discovered new exit (range 10) 12042 | -4/Waste | EMP discharged 12043 | -4/Waste | Identified exit to Factory 12043 | -4/Waste | Entered Factory 12058 | -4/Factory | 1 allies followed down the chute 12066 | -4/Factory | Loaded intel: 8 recycling unit locations 12305 | -4/Factory | Spotted B-86 Titan 12431 | -4/Factory | Entered Research 12431 | -3/Research | Evolved 2 slots: Power x1, Propulsion x1 12469 | -3/Research | Identified exit to Armory 12469 | -3/Research | Identified exit to Testing 12621 | -3/Research | Identified exit to Research 12672 | -3/Research | Spotted B-86 Titan 12727 | -3/Research | Loaded intel: 5 recycling unit locations 12762 | -3/Research | Crushed by falling debris 12762 | -3/Research | System corruption reached 10% 12775 | -3/Research | Entered another Research area 12775 | -2/Research | Evolved 2 slots: Propulsion x1, Utility x1 12846 | -2/Research | Identified exit to Quarantine 12910 | -2/Research | Spotted B-90 Cyclops 12916 | -2/Research | Entered Quarantine 13002 | -2/Quarantine | Watched by a mysterious "MATRIX" hacker. 13052 | -2/Quarantine | Repaired Nuclear Pulse Thruster 13111 | -2/Quarantine | Discovered new exit (range 13) 13139 | -2/Quarantine | Found Alien Artifact 13139 | -2/Quarantine | Identified Phase Armor 13163 | -2/Quarantine | Met incapacitated Sigix Warrior 13163 | -2/Quarantine | Lockdown squad dispatched 13166 | -2/Quarantine | Search patrols dispatched 13171 | -2/Quarantine | Spotted Lightning 13190 | -2/Quarantine | Scanned by Researcher 13211 | -2/Quarantine | Spotted Fortress 13230 | -2/Quarantine | Discovered new exit (range 7) 13230 | -2/Quarantine | Discovered new exit (range 6) 13232 | -2/Quarantine | Entered Protoforge 13261 | -2/Protoforge | Spotted Hotshot 13261 | -2/Protoforge | Spotted Hotshot 13266 | -2/Protoforge | Spotted Hotshot 13272 | -2/Protoforge | Spotted Hotshot 13275 | -2/Protoforge | Superfortress began startup sequence 13286 | -2/Protoforge | Discovered new exit (range 13) 13311 | -2/Protoforge | Spotted B-90 Cyclops 13322 | -2/Protoforge | Spotted Hotshot 13326 | -2/Protoforge | Spotted Hotshot 13326 | -2/Protoforge | Spotted Hotshot 13382 | -2/Protoforge | Spotted AP7-3 13382 | -2/Protoforge | Spotted Overlord 13382 | -2/Protoforge | Spotted AP7-3 13400 | -2/Protoforge | Spotted Decapitator 13400 | -2/Protoforge | Spotted Decapitator 13409 | -2/Protoforge | UFD initiated attack on Protoforge (Readiness: High) 13409 | -2/Protoforge | Loaded intel: 3 recycling unit locations 13424 | -2/Protoforge | Lost 3 parts (1p2u) 13433 | -2/Protoforge | Spotted EXE-6 13434 | -2/Protoforge | Spotted EXE-6 13444 | -2/Protoforge | Found Prototype Processor 13444 | -2/Protoforge | Identified Exp. Core Analyzer 13447 | -2/Protoforge | Found Prototype Processor 13447 | -2/Protoforge | Identified Exp. Armor Integrity Analyzer 13450 | -2/Protoforge | Optimus greeted in Protoforge 13468 | -2/Protoforge | Destroyed Decapitator 13475 | -2/Protoforge | Found Prototype Slashing Weapon 13475 | -2/Protoforge | Identified Exp. Terror Saw 13494 | -2/Protoforge | Found UFD Drillbomb 13498 | -2/Protoforge | Lost 5 allies 13503 | -2/Protoforge | Spotted EXE-6 13503 | -2/Protoforge | Spotted EXE-6 13588 | -2/Protoforge | Installed UFD Drillbomb at designated target 13588 | -2/Protoforge | UFD reported confirmed Drillbomb installation 13615 | -2/Protoforge | Found Exp. Core Analyzer 13631 | -2/Protoforge | Found UFD Drillbomb 13666 | -2/Protoforge | Spotted Executioner 13666 | -2/Protoforge | Spotted Striker 13672 | -2/Protoforge | Build established: Scavenger-Sprinter 13685 | -2/Protoforge | Met 7R-MNS 13685 | -2/Protoforge | Spotted Executioner 13690 | -2/Protoforge | Spotted Executioner 13699 | -2/Protoforge | Spotted Executioner 13708 | -2/Protoforge | Spotted Striker 13714 | -2/Protoforge | Spotted Executioner 13714 | -2/Protoforge | Spotted Striker 13714 | -2/Protoforge | Spotted Executioner 13714 | -2/Protoforge | Found UFD Drillbomb 13760 | -2/Protoforge | Spotted Striker 13783 | -2/Protoforge | Spotted Striker 13797 | -2/Protoforge | Spotted Hotshot 13797 | -2/Protoforge | Spotted Hotshot 13797 | -2/Protoforge | Spotted Hotshot 13797 | -2/Protoforge | Spotted Hotshot 13834 | -2/Protoforge | Lost 3 parts (2n1u) 13843 | -2/Protoforge | Spotted Striker 13845 | -2/Protoforge | Spotted Executioner 13879 | -2/Protoforge | Lost 10 allies 13904 | -2/Protoforge | Core integrity fell below 50% 13918 | -2/Protoforge | P-80 Master assimilated allied 02F42-D 13938 | -2/Protoforge | Found Prototype Processor 13938 | -2/Protoforge | Identified Exp. Targeting Computer 13940 | -2/Protoforge | Lost 13 parts (4p4n3u2w) 13980 | -2/Protoforge | Lost 9 allies 14015 | -2/Protoforge | Installed UFD Drillbomb at designated target 14015 | -2/Protoforge | UFD reported confirmed Drillbomb installation 14019 | -2/Protoforge | Spotted Striker 14023 | -2/Protoforge | Spotted Striker 14025 | -2/Protoforge | Destroyed Striker 14030 | -2/Protoforge | Spotted Executioner 14030 | -2/Protoforge | Spotted Executioner 14063 | -2/Protoforge | Found Exp. Core Analyzer 14081 | -2/Protoforge | Found UFD Drillbomb 14093 | -2/Protoforge | Spotted Executioner 14096 | -2/Protoforge | System corruption reached 10% 14097 | -2/Protoforge | Core integrity fell below 20% 14111 | -2/Protoforge | Lost 12 allies 14159 | -2/Protoforge | Spotted Executioner 14159 | -2/Protoforge | Spotted Executioner 14159 | -2/Protoforge | Spotted Executioner 14159 | -2/Protoforge | Spotted Striker 14173 | -2/Protoforge | Build established: Scavenger-Mutant 14195 | -2/Protoforge | P-80 Master assimilated allied Lugger 165 14215 | -2/Protoforge | Destroyed by P-80 Master with Gamma Rifle Last Messages --------------- 14205_ P-80 Master resets Striker, system corruption cleaned. 14205_ Lugger 165 reactivates. 14205_ Slug penetrates Wall. 14206_ N-04 Retriever collects KE Penetrator. 14206_ N-04 Retriever collects Corrupted Imp. Ion Engine. 14207_ Acquired Lgt. Antimatter Reactor+. 14208_ P-80 Master resets Lugger 165, system corruption cleaned. 14210_ P-80 Master resets N-04 Retriever, system corruption cleaned. 14210_ N-04 Retriever collects Ovr. Coil Gun. 14210_ Myomer Leg destroyed. 14211_ 02F54-D suffers critical hit (Impale). 14211_ 02F54-D destroyed. 14212_ Striker suffers critical hit (Burn). 14213_ Slug penetrates Striker. 14213_ Striker suffers critical hit (Destroy). 14213_ Striker destroyed. Map ----- +----------------------------------------------------+ | ????????????????????## #####????#####????#####?? | | ????????????????????## ##?########?########?#### | | ????????????????????## ##?########?########?#### | | ????????????????????## ##???????#########??????? | | ????????????????????## ##???????#########??????? | | ????????????????????## ##?????#### """"##??????? | | #####???????????????## ######## ##""S""#######?? | | #####??????##???????## #"""#####"#"" ""#"#####?? | | ??##??????? ######### " # #### | | ?##???????# # ## # " [*! "" " # # | | ##?######## # ### " " %"%[ % "# | | ##?#######? """"##% # " !" | | ##?## ##?##* =% ;;*;;;;"" [!= !" " | | ##### ####"& % %;;;; ";;""!![=*==[""""" | | ####" %&#"##;! % % %% %! %%%%%% %!%=![% | | # "* %%*% & % % % %!%! %% %%%% &%%%%% % | | ###"#"[%^ [==![ %%%% %%%*%[% % %%%% %%%%%%% % % | | "%""%""=^ =[%%% np s% & ;!%##;;; ""%"%"%%%/"%%"" | | " " %""%&!*%=% pp s % ; / ;;"!"/=%" # [=# # | | " "!/!%*[ ";;;; [;; ; # "%##### # | | =!" ### # [ " "!=[!##??#### | | ####### % """ ### ; ;;;; ##" #### ##?????? | | ####### """" ### # ;####"T + ##????? | | ?????## ####; %##?##"" #### #####??# | | ?????## ##?## =##?##"" #### #####??? | | ?????######### ##?## @;###### #### ##??? | | ?????######### ##?#; #;#######+"##### ##??? | | ?????######### ##?## #; # ##??? | | ############## ##?#; ## """"""" # ##??? | | ####### ##?## ## """"""" # ##### | | " ##?## ## """"""" # ##### | | # ####; ## s # # | | # #####"###### "# # # | | # # T ## "##+#j;#####"## # | | # # ## " | | # %+ ## ##### ##### # | | # # """" ## ##### ##### # | | # # """" ## #####+###### ##### ##### | | ####### # """" ##"# ###???? ?###+##### ##### | | ####### # """" #### ###???? # ## ##??? | | ?????## # #### ###????? # + ##??? | | ?????## # #### ###????? " # " " ## ##### | | ?????## ############# +????? # " " ## ##### | | ?????## #############+###?????? # " " ## ## | | ?????## ##?##??????# #?????? # ##### ## | | ####### ##?##??????# #??????? ######+##### ## | | ####### ##?##??????# #?????? ###### ##### ## | | # ##?##??????# ############### ### | | # ##?##??????# ######### T" | | + ##?##??????# + "" | +----------------------------------------------------+ Best States ------------- Heat Dissipation 75 Energy Generation 49 Energy Capacity 440 Matter Stores 300 Matter Capacity 300 Sight Range 20 Robot Scan Range 20 Terrain Scan Density 85 Jamming Range 16 Cloak Strength 3 Armor Coverage 600 Resistance: TH 10 Core Shielding 20 Propulsion Shielding 66 Weapon Shielding 90 Phase Shifting 15 Evasion (%) 81 Targeting Accuracy 12 Melee Accuracy 16 Core Analysis 12 Armor Integrity Analysis 50 Recoil Reduction 4 Force Boost 30 Salvage Targeting 4 Offensive Hacking 31 Defensive Hacking 10 Authchip Count 1 Item Schematics ----------------- Utility Shielding | -10/Materials | Hacked Reaction Control System | -7/Recycling | Hacked Imp. Utility Shielding | -7/Recycling | Hacked Imp. Propulsion Shielding | -7/Recycling | Hacked Robot Schematics ------------------ None Fabricated ------------ Imp. Propulsion Shielding | x2 | -5/Factory | Authchip Repaired ---------- Imp. Medium Armor Plating | 8% | -7/Storage Nuclear Pulse Thruster | 13% | -2/Quarantine Studied --------- Flight Unit | -9/Materials | Hacked Lgt. Cannon | -9/Materials | Hacked Lgt. Antimatter Reactor | -4/Factory | Hacked Field Propulsion Drive | -4/Factory | Hacked Alien Tech Used ----------------- Phase Armor Achievements -------------- Deadly Force False Reunion Fine I'll Do It Myself Origins Super-what Now? We Are One Challenges ------------ None Game ------ Seed GatlingBlanketRocket Manual? 0 Play Time 02:35:12 Cumulative 121.1 hours Start 2026.03.05 @ 21:17:13 End 2026.03.06 @ 14:23:02 Sessions 17 Manual Loads 0 Difficulty Rogue Special Mode None Game No. 142 Rogue 67 Adventurer 75 Explorer 0 Win Type - Total 4 Types 4/0/0/0/0/0/0/0/0/0 Lore% 57 Gallery% 54 Achievement% 45 Wizard Run 0 Options --------- Layout 2 ASCII 0 Keyboard 0 Movement Numpad Keybinds 0 Fullscreen 2 Font 24/Smallcaps Map View 50x44 Zoom Use 0% Tactical HUD 1 Map Filters NONE Filters NONE Steam 1 RUN: 7bc04130-7366-4ea5-80b1-60c03effa52d